Workbook

Sheet паспорт
A1: ПАТ "УКРТРАНСГАЗ" | G1: ПАСПОРТ ФІЗИКО-ХІМІЧНИХ ПОКАЗНИКІВ ПРИРОДНОГО ГАЗУ № 21
A2: Філія "УМГ "КИЇВТРАНСГАЗ" | G2: переданого Боярським ЛВУМГ та прийнятого ПАТ "Київоблгаз", ПАТ "Житомиргаз"
A3: Боярське ЛВУМГ | G3: Маршрут №21
A4: Вимірювальна хіміко-аналітична лабораторія
A5: Свідоцтво № 70А-43-14 чинно до 23.07.2019 р. | K5: по газопроводу "КИЇВ - ЗАХІД УКРАЇНИ -2" | V5: за період з | X5: 2017-03-01 | Z5: по | AA5: 2017-03-31
A7: Число місяця | B7: Компонентний склад, % мол. | N7: Фізико-хімічні показники газу обчислені на основі компонентного складу, 101,325 кПа | X7: Температура точки роси за вологою (Р = 3.92 МПа), ºС | Y7: Температура точки роси за вуглеводнями, ºС | Z7: Вміст сірководню, г/м3 | AA7: Вміст меркаптанової сірки, г/м3 | AB7: Вміст механічних домішок, г/м3
N8: Густина абсолютна, кг/м3,при 20 ºС, | O8: Температура вимірювання/згоряння при 20/25°С
B9: метан, С1 | C9: етан, С2 | D9: пропан, С3 | E9: ізо-бутан, і-С4 | F9: н-бутан, н-С4 | G9: нео-пентан, нео-С5 | H9: ізо-пентан, і-С5 | I9: н-пентан, н-С5 | J9: гексани та вищі, С6+ | K9: кисень, О2 | L9: азот, N2 | M9: діоксид вуглецю, CО2 | O9: Теплота згоряння нижча | R9: Теплота згоряння вища | U9: Число Воббе вище
O10: ккал/м3 | P10: МДж/м3 | Q10: кВт⋅год/м3 | R10: ккал/м3 | S10: МДж/м3 | T10: кВт⋅год/м3 | U10: ккал/м3 | V10: МДж/м3 | W10: кВт⋅год/м3
A11: 1 | O11: =P11*238.8459 -> 8194.802829 | P11: 34.31 | Q11: =P11/3.6 -> 9.530555556 | R11: =S11*238.8459 -> 9076.1442 | S11: 38 | T11: =S11/3.6 -> 10.55555556 | X11: -13.1 | Y11: -12.6 | AC11: =SUM(B11:M11)+$K$42+$N$42 -> 0
A12: 2 | O12: =P12*238.8459 -> 8194.802829 | P12: 34.31 | Q12: 9.530555556 | R12: =S12*238.8459 -> 9076.1442 | S12: 38 | T12: 10.55555556 | X12: -12.6 | Y12: -12 | AC12: 0
A13: 3 | O13: 8194.802829 | P13: 34.31 | Q13: 9.530555556 | R13: 9076.1442 | S13: 38 | T13: 10.55555556 | X13: -12.4 | Y13: -11.7 | AC13: 0 | AD13: =IF(AC13=100,"ОК"," ") -> 
A14: 4 | O14: 8194.802829 | P14: 34.31 | Q14: 9.530555556 | R14: 9076.1442 | S14: 38 | T14: 10.55555556 | AC14: 0 | AD14: =IF(AC14=100,"ОК"," ") -> 
A15: 5 | O15: 8194.802829 | P15: 34.31 | Q15: 9.530555556 | R15: 9076.1442 | S15: 38 | T15: 10.55555556 | AC15: 0
A16: 6 | B16: 89.6194 | C16: 5.01 | D16: 1.0619 | E16: 0.1097 | F16: 0.1642 | G16: 0.0037 | H16: 0.0432 | I16: 0.0371 | J16: 0.0756 | K16: 0.0052 | L16: 1.6656 | M16: 2.2044 | N16: 0.7531 | O16: 8216.29896 | P16: 34.4 | Q16: 9.555555556 | R16: 9100.02879 | S16: 38.1 | T16: 10.58333333 | U16: =V16*238.8459 -> 11507.59546 | V16: 48.18 | W16: =V16/3.6 -> 13.38333333 | X16: -12.9 | Y16: -12.1 | AC16: 100 | AD16: ОК
A17: 7 | O17: 8216.29896 | P17: 34.4 | Q17: 9.555555556 | R17: 9100.02879 | S17: 38.1 | T17: 10.58333333 | X17: -12.6 | Y17: -11.8 | AC17: 0
A18: 8 | O18: 8216.29896 | P18: 34.4 | Q18: 9.555555556 | R18: 9100.02879 | S18: 38.1 | T18: 10.58333333 | AC18: 0
A19: 9 | O19: 8216.29896 | P19: 34.4 | Q19: 9.555555556 | R19: 9100.02879 | S19: 38.1 | T19: 10.58333333 | X19: -12.5 | Y19: -11.1 | AC19: 0
A20: 10 | O20: 8216.29896 | P20: 34.4 | Q20: 9.555555556 | R20: 9100.02879 | S20: 38.1 | T20: 10.58333333 | X20: -13.5 | Y20: -12.6 | AC20: 0
A21: 11 | O21: 8216.29896 | P21: 34.4 | Q21: 9.555555556 | R21: 9100.02879 | S21: 38.1 | T21: 10.58333333 | AC21: 0
A22: 12 | O22: 8216.29896 | P22: 34.4 | Q22: 9.555555556 | R22: 9100.02879 | S22: 38.1 | T22: 10.58333333 | AC22: 0
A23: 13 | B23: 89.5486 | C23: 5.0646 | D23: 1.0626 | E23: 0.1104 | F23: 0.1694 | G23: 0.0036 | H23: 0.044 | I23: 0.0361 | J23: 0.063 | K23: 0.014 | L23: 1.7371 | M23: 2.1465 | N23: 0.7529 | O23: 8213.910501 | P23: 34.39 | Q23: 9.552777778 | R23: 9097.640331 | S23: 38.09 | T23: 10.58055556 | U23: =V23*238.8459 -> 11507.59546 | V23: 48.18 | W23: =V23/3.6 -> 13.38333333 | AC23: 99.9999
A24: 14 | O24: 8213.910501 | P24: 34.39 | Q24: 9.552777778 | R24: 9097.640331 | S24: 38.09 | T24: 10.58055556 | X24: -13.6 | Y24: -12.6 | AC24: 0
A25: 15 | O25: 8213.910501 | P25: 34.39 | Q25: 9.552777778 | R25: 9097.640331 | S25: 38.09 | T25: 10.58055556 | X25: -12.7 | Y25: -11.8 | AC25: 0
A26: 16 | O26: 8213.910501 | P26: 34.39 | Q26: 9.552777778 | R26: 9097.640331 | S26: 38.09 | T26: 10.58055556 | X26: -12.9 | Y26: -12.1 | AC26: 0
A27: 17 | O27: 8213.910501 | P27: 34.39 | Q27: 9.552777778 | R27: 9097.640331 | S27: 38.09 | T27: 10.58055556 | X27: -11.8 | Y27: -11.7 | AC27: 0
A28: 18 | O28: 8213.910501 | P28: 34.39 | Q28: 9.552777778 | R28: 9097.640331 | S28: 38.09 | T28: 10.58055556 | AC28: 0
A29: 19 | O29: 8213.910501 | P29: 34.39 | Q29: 9.552777778 | R29: 9097.640331 | S29: 38.09 | T29: 10.58055556 | AC29: 0
A30: 20 | B30: 89.5602 | C30: 5.0438 | D30: 1.0635 | E30: 0.1114 | F30: 0.1731 | G30: 0.0037 | H30: 0.0464 | I30: 0.0384 | J30: 0.0802 | K30: 0.0089 | L30: 1.6911 | M30: 2.1794 | N30: 0.7536 | O30: 8221.075878 | P30: 34.42 | Q30: 9.561111111 | R30: 9107.194167 | S30: 38.13 | T30: 10.59166667 | U30: =V30*238.8459 -> 11512.37238 | V30: 48.2 | W30: =V30/3.6 -> 13.38888889 | X30: -12 | Y30: -11.9 | AC30: 100.0001 | AD30: =IF(AC30=100,"ОК"," ") -> 
A31: 21 | O31: =P31*238.8459 -> 8221.075878 | P31: 34.42 | Q31: =P31/3.6 -> 9.561111111 | R31: =S31*238.8459 -> 9107.194167 | S31: 38.13 | T31: =S31/3.6 -> 10.59166667 | X31: -11.5 | Y31: -11.7 | AC31: 0
A32: 22 | O32: 8221.075878 | P32: 34.42 | Q32: 9.561111111 | R32: 9107.194167 | S32: 38.13 | T32: 10.59166667 | X32: -12.2 | Y32: -12 | AC32: 0
A33: 23 | O33: 8221.075878 | P33: 34.42 | Q33: =P33/3.6 -> 9.561111111 | R33: 9107.194167 | S33: 38.13 | T33: =S33/3.6 -> 10.59166667 | X33: -13.9 | Y33: -12.9 | AC33: 0 | AD33: =IF(AC33=100,"ОК"," ") -> 
A34: 24 | O34: 8221.075878 | P34: 34.42 | Q34: 9.561111111 | R34: 9107.194167 | S34: 38.13 | T34: 10.59166667 | X34: -13.6 | Y34: -12.7 | AC34: 0
A35: 25 | O35: 8221.075878 | P35: 34.42 | Q35: 9.561111111 | R35: 9107.194167 | S35: 38.13 | T35: 10.59166667 | AC35: 0
A36: 26 | O36: 8221.075878 | P36: 34.42 | Q36: 9.561111111 | R36: 9107.194167 | S36: 38.13 | T36: =S36/3.6 -> 10.59166667 | AC36: 0
A37: 27 | B37: 89.6395 | C37: 4.9906 | D37: 1.0441 | E37: 0.1134 | F37: 0.1754 | G37: 0.0038 | H37: 0.047 | I37: 0.0393 | J37: 0.0797 | K37: 0.0143 | L37: 1.783 | M37: 2.0699 | N37: 0.7524 | O37: 8218.687419 | P37: 34.41 | Q37: 9.558333333 | R37: 9102.417249 | S37: 38.11 | T37: 10.58611111 | U37: =V37*238.8459 -> 11517.1493 | V37: 48.22 | W37: =V37/3.6 -> 13.39444444 | X37: -13.4 | Y37: -12.7 | Z37: 0.006 | AA37: 0.02 | AB37: відсут | AC37: 100 | AD37: ОК
A38: 28 | O38: 8218.687419 | P38: 34.41 | Q38: 9.558333333 | R38: 9102.417249 | S38: 38.11 | T38: 10.58611111 | X38: -12.9 | Y38: -12.4
A39: 29 | O39: 8218.687419 | P39: 34.41 | Q39: 9.558333333 | R39: 9102.417249 | S39: 38.11 | T39: 10.58611111 | X39: -13.4 | Y39: -10.3
A40: 30 | O40: 8218.687419 | P40: 34.41 | Q40: 9.558333333 | R40: 9102.417249 | S40: 38.11 | T40: 10.58611111 | X40: -11.9 | Y40: -9.9
A41: 31 | O41: 8218.687419 | P41: 34.41 | Q41: 9.558333333 | R41: 9102.417249 | S41: 38.11 | T41: 10.58611111 | AC41: 0
A42: Вміст одоранта при одоризації становить 16 г на 1 000 м³ газу | O42: =SUMPRODUCT(O11:O41,' розрахунок'!BI7:BI37)/' розрахунок'!BI38 -> 8212.931921 | P42: =SUMPRODUCT(P11:P41,' розрахунок'!BI7:BI37)/' розрахунок'!BI38 -> 34.38590288 | Q42: =SUMPRODUCT(Q11:Q41,' розрахунок'!BI7:BI37)/' розрахунок'!BI38 -> 9.551639689 | R42: =SUMPRODUCT(R11:R41,' розрахунок'!BI7:BI37)/' розрахунок'!BI38 -> 9096.693731 | S42: =SUMPRODUCT(S11:S41,' розрахунок'!BI7:BI37)/' розрахунок'!BI38 -> 38.08603678 | T42: =SUMPRODUCT(T11:T41,' розрахунок'!BI7:BI37)/' розрахунок'!BI38 -> 10.57945466
H43: Середньозважене значення теплоти згоряння:
B46: Головний інженер Боярського ЛВУМГ Табак С.М. 03.04.2017 р.
C47: Підрозділу підприємства, якому підпорядкована лабораторія | O47: прізвище | R47: підпис | V47: дата
B48: Завідувач вимірювальної хіміко-аналітичної лабораторії Клименко І.А. 03.04.2017 р.
C49: Лабораторія, де здійснювалось вимірювання газу | O49: прізвище | R49: підпис | V49: дата
B50: Начальник служби газовимірювань та метрології Прима Ю.І. 03.04.2017 р.
C51: Підрозділу, відповідального за облік газу за маршрутом | O51: прізвище | R51: підпис | V51: дата

Sheet розрахунок (hidden)
A2: Додаток до Паспорту фізико-хімічних показників природного газу по маршруту № 21 | BL2: 38.07899475 | BM2: 9095.011773 | BN2: 10.57749854
BL3: 38.08701448 | BM3: 9096.927253 | BN3: 10.57972625
A4: Число місяця | B4: Теплота згоряння вища, МДж/м3 | C4: Київська область | BA4: Житомирська область | BI4: Загальний обсяг газу, м3 | BL4: 38.08428271 | BM4: 9096.27478 | BN4: 10.57896742
C5: Обсяг газу переданого за добу, м3 | BA5: Обсяг газу переданого за добу, м3 | BL5: 38.08660364 | BM5: 9096.829124 | BN5: 10.57961212
C6: ГРС Б. Церква | D6: ГРС В. Половецьке | E6: ГРС Піщане | F6: ГРС Острійки | G6: ГРС Фастів-1 | H6: ГРС Фастів-2 | I6: ГРС Кожанка | J6: ГРС Мотовилівка | K6: ГРС р/г Фастівський | L6: ГРС Триліси | M6: ГРС В.Снітинка | N6: ГРС Дорогінка | O6: ГРС Васильків | P6: ГРС Ворзель | Q6: ГРС Гребінки | R6: ГРС Глеваха | S6: ГРС Устимівка | T6: ГРС Багрин (Калинівка) | U6: ГРС Плесецьке | V6: ГРС Тр.Новоселиця | W6: ГРС Вишеньки | X6: ГРС Чайка | Y6: ГРС ЛОС | Z6: ГРС Жорнівка | AA6: ГРС Забір'я | AB6: ГРС Димер (місто) | AC6: ГРС Іванків | AD6: ГРС Димер - 2 (Агромарс) | AE6: ГРС Блиставиця | AF6: ГРС Катюжанка | AG6: ГРС Рокитно | AH6: ГРС Шпитьки | AI6: ГРС Стоянка | AJ6: ГРС Ірпінь | AK6: ГРС Чорнобиль | AL6: ГРС Зелений Мис | AM6: ГРС Оране | AN6: ГРС Зорин | AO6: ГРС Обуховичі | AP6: ГРС Поліське | AQ6: ГРС Красятичі | AR6: ГРС Макарів | AS6: ГРС Бородянка | AT6: ГРС Грузьке | AU6: ГРС Клавдієво | AV6: ГРС Забуяння | AW6: ГРС Мигалки | AX6: прямий споживач АГНКС Бородянка "Ітера Україна" | AY6: прямий споживач АГНКС Б.Церква-2 "Екогаз-2005" | AZ6: прямий споживач АГНКС - Фастів | BA6: ГРС Народичі | BB6: ГРС Яжберень | BC6: ГРС Малин | BD6: ГРС Федорівка | BE6: ГРС Недашки | BF6: ГРС Радомишль | BG6: ГРС Брусилів | BH6: ГРС Ковганівка
A7: 1 | B7: 38 | C7: 884.529 | D7: 52.503 | E7: 7.78 | F7: 5.012 | G7: 0 | H7: 161.777 | I7: 13.443 | J7: 44.253 | K7: 0 | L7: 9.319 | M7: 6.829 | N7: 19.167 | O7: 137.733 | P7: 94.517 | Q7: 36.085 | R7: 98.736 | S7: 19.715 | T7: 40.183 | U7: 53.137 | V7: 102.499 | W7: 19.488 | X7: 118.437 | Y7: 0 | Z7: 27.765 | AA7: 9.8 | AB7: 22.87 | AC7: 36.266 | AD7: 100.634 | AE7: 50.873 | AF7: 6.898 | AG7: 119.55 | AH7: 32.932 | AI7: 38.552 | AJ7: 69.459 | AK7: 7.088 | AL7: 3.799 | AM7: 4.768 | AN7: 1.234 | AO7: 8.472 | AP7: 6.385 | AQ7: 5.534 | AR7: 85.561 | AS7: 58.501 | AT7: 21.963 | AU7: 29.062 | AV7: 4.896 | AW7: 50.202 | AX7: 1.662 | AY7: 2.608 | AZ7: 1.142 | BA7: 10.272 | BB7: 6.876 | BC7: 87.28 | BD7: 6.159 | BE7: 1.25 | BF7: 54.082 | BG7: 47.519 | BH7: 7.651 | BI7: =SUM(C7:BH7) -> 2954.707 | BL7: 38.08767283 | BM7: 9097.084496 | BN7: 10.57990912
A8: 2 | B8: 38 | C8: 873.098 | D8: 50.339 | E8: 7.417 | F8: 4.749 | G8: 0 | H8: 150.714 | I8: 13.096 | J8: 42.621 | K8: 0 | L8: 8.88 | M8: 6.558 | N8: 18.327 | O8: 137.997 | P8: 95.158 | Q8: 34.968 | R8: 96.196 | S8: 19.059 | T8: 38.813 | U8: 51.362 | V8: 99.628 | W8: 19.45 | X8: 119.012 | Y8: 0 | Z8: 26.885 | AA8: 9.629 | AB8: 21.93 | AC8: 33.062 | AD8: 110.133 | AE8: 49.159 | AF8: 6.406 | AG8: 117.42 | AH8: 31.166 | AI8: 37.722 | AJ8: 67.266 | AK8: 7.33 | AL8: 3.612 | AM8: 4.424 | AN8: 0.975 | AO8: 7.58 | AP8: 5.91 | AQ8: 5.703 | AR8: 85.155 | AS8: 54.307 | AT8: 20.724 | AU8: 26.499 | AV8: 4.47 | AW8: 48.734 | AX8: 1.532 | AY8: 2.744 | AZ8: 1.172 | BA8: 9.277 | BB8: 6.343 | BC8: 85.073 | BD8: 5.58 | BE8: 0.917 | BF8: 50.097 | BG8: 43.155 | BH8: 6.926 | BI8: =SUM(C8:BH8) -> 2886.459 | BL8: 38.08709125 | BM8: 9096.945588 | BN8: 10.57974757
A9: 3 | B9: 38 | C9: 882.188 | D9: 51.214 | E9: 9.536 | F9: 4.902 | G9: 0 | H9: 143.207 | I9: 12.902 | J9: 42.86 | K9: 0 | L9: 8.956 | M9: 6.449 | N9: 18.665 | O9: 184.592 | P9: 90.371 | Q9: 34.654 | R9: 57.129 | S9: 19.302 | T9: 38.978 | U9: 52.276 | V9: 100.272 | W9: 20.064 | X9: 117.255 | Y9: 0 | Z9: 26.936 | AA9: 9.631 | AB9: 22.319 | AC9: 34.094 | AD9: 113.727 | AE9: 51.673 | AF9: 6.668 | AG9: 116.673 | AH9: 31.817 | AI9: 37.786 | AJ9: 72.885 | AK9: 7.473 | AL9: 3.583 | AM9: 4.647 | AN9: 1.305 | AO9: 8.107 | AP9: 6.127 | AQ9: 5.41 | AR9: 94.423 | AS9: 55.38 | AT9: 21.565 | AU9: 27.165 | AV9: 4.641 | AW9: 49.443 | AX9: 1.758 | AY9: 3.645 | AZ9: 1.149 | BA9: 9.636 | BB9: 6.543 | BC9: 82.488 | BD9: 5.437 | BE9: 1.195 | BF9: 52.703 | BG9: 43.936 | BH9: 7.479 | BI9: 2925.219 | BL9: 38.08714702 | BM9: 9096.958908 | BN9: 10.57976306
A10: 4 | B10: 38 | C10: 860.753 | D10: 50.865 | E10: 9.922 | F10: 4.773 | G10: 0 | H10: 140.67 | I10: 13.067 | J10: 42.068 | K10: 0 | L10: 8.867 | M10: 6.314 | N10: 18.628 | O10: 188.993 | P10: 92.84 | Q10: 34.64 | R10: 39.05 | S10: 19.23 | T10: 38.657 | U10: 52.499 | V10: 98.661 | W10: 19.164 | X10: 114.677 | Y10: 0 | Z10: 26.804 | AA10: 9.455 | AB10: 22.393 | AC10: 34.708 | AD10: 89.211 | AE10: 53.746 | AF10: 6.658 | AG10: 115.32 | AH10: 31.721 | AI10: 36.159 | AJ10: 68.389 | AK10: 6.465 | AL10: 3.675 | AM10: 4.763 | AN10: 1.245 | AO10: 8.398 | AP10: 6.175 | AQ10: 5.676 | AR10: 94.685 | AS10: 53.503 | AT10: 22.079 | AU10: 27.339 | AV10: 4.672 | AW10: 49.53 | AX10: 1.226 | AY10: 2.8 | AZ10: 1.102 | BA10: 9.853 | BB10: 6.49 | BC10: 78.148 | BD10: 5.568 | BE10: 1.241 | BF10: 55.144 | BG10: 43.494 | BH10: 6.84 | BI10: 2849.013 | BL10: 38.09 | BM10: 9097.640331 | BN10: 10.58055556
A11: 5 | B11: 38 | C11: 872.885 | D11: 48.404 | E11: 9.51 | F11: 4.67 | G11: 0 | H11: 136.718 | I11: 12.3 | J11: 39.595 | K11: 0 | L11: 8.461 | M11: 6.207 | N11: 17.42 | O11: 182.586 | P11: 97.729 | Q11: 33.968 | R11: 39.013 | S11: 18.206 | T11: 37.135 | U11: 49.148 | V11: 94.543 | W11: 18.495 | X11: 110.6 | Y11: 0 | Z11: 24.445 | AA11: 8.988 | AB11: 20.944 | AC11: 32.661 | AD11: 86.043 | AE11: 51.203 | AF11: 6.118 | AG11: 112.355 | AH11: 28.822 | AI11: 34.03 | AJ11: 57.994 | AK11: 6.587 | AL11: 3.265 | AM11: 4.366 | AN11: 1.084 | AO11: 7.199 | AP11: 6.032 | AQ11: 5.321 | AR11: 89.194 | AS11: 49.768 | AT11: 19.981 | AU11: 25.094 | AV11: 4.24 | AW11: 48.21 | AX11: 0.903 | AY11: 1.806 | AZ11: 0.981 | BA11: 8.988 | BB11: 5.98 | BC11: 73.046 | BD11: 5.072 | BE11: 1.022 | BF11: 50.324 | BG11: 41.468 | BH11: 6.374 | BI11: 2767.501 | BL11: 38.08711127 | BM11: 9096.950369 | BN11: 10.57975313
A12: 6 | B12: 38.1 | C12: 847.481 | D12: 45.807 | E12: 8.385 | F12: 4.385 | G12: 0 | H12: 135.07 | I12: 11.793 | J12: 37.845 | K12: 0 | L12: 8.082 | M12: 5.784 | N12: 16.225 | O12: 153.774 | P12: 87.727 | Q12: 32.985 | R12: 36.352 | S12: 17.609 | T12: 35.087 | U12: 46.471 | V12: 89.666 | W12: 16.701 | X12: 106.036 | Y12: 0 | Z12: 22.856 | AA12: 8.331 | AB12: 19.912 | AC12: 30.663 | AD12: 79.249 | AE12: 48.114 | AF12: 6.007 | AG12: 105.774 | AH12: 27.378 | AI12: 32.383 | AJ12: 49.247 | AK12: 6.447 | AL12: 3.05 | AM12: 3.957 | AN12: 0.983 | AO12: 7.221 | AP12: 5.834 | AQ12: 5.24 | AR12: 85.094 | AS12: 48.492 | AT12: 18.581 | AU12: 23.559 | AV12: 4.013 | AW12: 47.942 | AX12: 1.613 | AY12: 2.944 | AZ12: 0.978 | BA12: 8.554 | BB12: 5.744 | BC12: 79.679 | BD12: 5.435 | BE12: 0.865 | BF12: 48.472 | BG12: 39.488 | BH12: 6.252 | BI12: 2633.616 | BL12: 38.08707546 | BM12: 9096.941816 | BN12: 10.57974318
A13: 7 | B13: 38.1 | C13: 817.663 | D13: 40.868 | E13: 6.08 | F13: 3.886 | G13: 0 | H13: 122.322 | I13: 10.603 | J13: 34.559 | K13: 0 | L13: 7.357 | M13: 5.186 | N13: 14.913 | O13: 141.537 | P13: 84.201 | Q13: 29.907 | R13: 48.345 | S13: 16.07 | T13: 32.185 | U13: 42.807 | V13: 82.359 | W13: 16.297 | X13: 101.835 | Y13: 0 | Z13: 21.573 | AA13: 7.771 | AB13: 20.329 | AC13: 29.992 | AD13: 97.521 | AE13: 48.373 | AF13: 5.776 | AG13: 94.501 | AH13: 26.196 | AI13: 31.033 | AJ13: 43.388 | AK13: 5.777 | AL13: 3.158 | AM13: 4.08 | AN13: 1.021 | AO13: 7.427 | AP13: 5.524 | AQ13: 5.062 | AR13: 81.413 | AS13: 46.996 | AT13: 17.354 | AU13: 22.551 | AV13: 3.939 | AW13: 47.274 | AX13: 1.803 | AY13: 2.68 | AZ13: 1.085 | BA13: 8.376 | BB13: 5.626 | BC13: 75.933 | BD13: 5.128 | BE13: 1.119 | BF13: 49.389 | BG13: 37.411 | BH13: 5.987 | BI13: 2531.546 | BL13: 38.08705021 | BM13: 9096.935786 | BN13: 10.57973617
A14: 8 | B14: 38.1 | C14: 854.82 | D14: 46.181 | E14: 6.968 | F14: 4.29 | G14: 0 | H14: 128.562 | I14: 11.692 | J14: 37.607 | K14: 0 | L14: 8.013 | M14: 5.672 | N14: 15.17 | O14: 149.743 | P14: 91.666 | Q14: 32.624 | R14: 59.498 | S14: 17.343 | T14: 33.935 | U14: 45.821 | V14: 89.716 | W14: 17.256 | X14: 102.5 | Y14: 0 | Z14: 22.11 | AA14: 8.016 | AB14: 20.787 | AC14: 31.164 | AD14: 95.169 | AE14: 50.104 | AF14: 6.112 | AG14: 104.254 | AH14: 26.657 | AI14: 31.327 | AJ14: 42.795 | AK14: 6.522 | AL14: 3.252 | AM14: 4.157 | AN14: 1.068 | AO14: 6.977 | AP14: 5.882 | AQ14: 4.927 | AR14: 85.664 | AS14: 46.187 | AT14: 18.152 | AU14: 23.524 | AV14: 4.302 | AW14: 48.134 | AX14: 1.25 | AY14: 2.206 | AZ14: 1.052 | BA14: 8.49 | BB14: 5.83 | BC14: 77.313 | BD14: 5.061 | BE14: 1.043 | BF14: 50.291 | BG14: 39.08 | BH14: 5.994 | BI14: 2653.93 | BL14: 38.08470545 | BM14: 9096.375751 | BN14: 10.57908485
A15: 9 | B15: 38.1 | C15: 547.269 | D15: 45.687 | E15: 6.806 | F15: 4.315 | G15: 0 | H15: 144.457 | I15: 12.173 | J15: 38.734 | K15: 0 | L15: 8.219 | M15: 5.857 | N15: 16.4 | O15: 155.687 | P15: 89.546 | Q15: 32.766 | R15: 62.21 | S15: 17.485 | T15: 33.935 | U15: 47.069 | V15: 89.509 | W15: 17.285 | X15: 104.202 | Y15: 0 | Z15: 23.309 | AA15: 8.366 | AB15: 21.607 | AC15: 31.254 | AD15: 107.516 | AE15: 49.942 | AF15: 6.216 | AG15: 104.433 | AH15: 27.472 | AI15: 33.873 | AJ15: 51.111 | AK15: 5.825 | AL15: 3.287 | AM15: 4.125 | AN15: 1.062 | AO15: 6.871 | AP15: 6.1 | AQ15: 5.301 | AR15: 87.291 | AS15: 48.974 | AT15: 19.079 | AU15: 24.417 | AV15: 4.406 | AW15: 48.924 | AX15: 1.617 | AY15: 3.129 | AZ15: 1.276 | BA15: 9.067 | BB15: 6.023 | BC15: 84.736 | BD15: 5.248 | BE15: 0.986 | BF15: 50.8 | BG15: 40.968 | BH15: 6.853 | BI15: 2421.075 | BL15: 38.09135872 | BM15: 9097.964855 | BN15: 10.58093298
A16: 10 | B16: 38.1 | C16: 458.048 | D16: 45.054 | E16: 6.651 | F16: 4.224 | G16: 0 | H16: 131.646 | I16: 11.835 | J16: 36.629 | K16: 0 | L16: 7.895 | M16: 5.543 | N16: 16.279 | O16: 143.613 | P16: 69.622 | Q16: 32.122 | R16: 58.987 | S16: 17.208 | T16: 33.468 | U16: 45.287 | V16: 87.901 | W16: 15.872 | X16: 97.568 | Y16: 0 | Z16: 22.309 | AA16: 7.903 | AB16: 20.353 | AC16: 30.682 | AD16: 81.909 | AE16: 52.716 | AF16: 5.992 | AG16: 104.187 | AH16: 26.541 | AI16: 30.662 | AJ16: 55.769 | AK16: 5.785 | AL16: 3.267 | AM16: 4.195 | AN16: 1.071 | AO16: 6.779 | AP16: 5.861 | AQ16: 5.524 | AR16: 84.466 | AS16: 47.244 | AT16: 18.665 | AU16: 23.728 | AV16: 4.14 | AW16: 48.576 | AX16: 1.94 | AY16: 3.209 | AZ16: 1.425 | BA16: 9.186 | BB16: 6.017 | BC16: 85.313 | BD16: 5.084 | BE16: 1.068 | BF16: 51.133 | BG16: 39.997 | BH16: 6.498 | BI16: 2234.646 | BL16: 38.08739077 | BM16: 9097.017127 | BN16: 10.57983077
A17: 11 | B17: 38.1 | C17: 464.888 | D17: 47.206 | E17: 7.135 | F17: 4.601 | G17: 0 | H17: 136.065 | I17: 12.147 | J17: 37.415 | K17: 0 | L17: 8.106 | M17: 5.731 | N17: 17.273 | O17: 148.171 | P17: 74.84 | Q17: 33.201 | R17: 60.546 | S17: 17.828 | T17: 35.357 | U17: 47.807 | V17: 91.748 | W17: 17.625 | X17: 102.112 | Y17: 0 | Z17: 24.586 | AA17: 8.654 | AB17: 20.658 | AC17: 31.991 | AD17: 80.006 | AE17: 59.945 | AF17: 6.034 | AG17: 106.942 | AH17: 28.856 | AI17: 32.592 | AJ17: 66.085 | AK17: 5.706 | AL17: 3.644 | AM17: 4.32 | AN17: 1.093 | AO17: 6.837 | AP17: 6.083 | AQ17: 5.511 | AR17: 88.369 | AS17: 47.954 | AT17: 20.103 | AU17: 25.151 | AV17: 4.186 | AW17: 48.68 | AX17: 1.356 | AY17: 2.222 | AZ17: 1.064 | BA17: 9.731 | BB17: 6.457 | BC17: 78.789 | BD17: 5.28 | BE17: 1.195 | BF17: 53.029 | BG17: 41.839 | BH17: 6.92 | BI17: 2311.67 | BL17: 38.09239336 | BM17: 9098.211975 | BN17: 10.58122038
A18: 12 | B18: 38.1 | C18: 488.986 | D18: 46.675 | E18: 7.155 | F18: 4.526 | G18: 0 | H18: 134.82 | I18: 11.826 | J18: 38.914 | K18: 0 | L18: 8.082 | M18: 5.949 | N18: 16.826 | O18: 154.189 | P18: 83.615 | Q18: 33.657 | R18: 63.111 | S18: 17.689 | T18: 35.794 | U18: 47.094 | V18: 92.165 | W18: 18.305 | X18: 105.454 | Y18: 0 | Z18: 24.41 | AA18: 8.722 | AB18: 20.66 | AC18: 32.842 | AD18: 99.806 | AE18: 60.191 | AF18: 6.364 | AG18: 109.952 | AH18: 28.331 | AI18: 33.617 | AJ18: 67.79 | AK18: 5.364 | AL18: 3.642 | AM18: 4.438 | AN18: 1.11 | AO18: 6.91 | AP18: 6.19 | AQ18: 5.329 | AR18: 88.98 | AS18: 48.743 | AT18: 19.495 | AU18: 24.913 | AV18: 4.273 | AW18: 49.056 | AX18: 1.036 | AY18: 2.041 | AZ18: 0.995 | BA18: 9.842 | BB18: 6.417 | BC18: 81.475 | BD18: 5.796 | BE18: 1.051 | BF18: 52.738 | BG18: 40.395 | BH18: 6.908 | BI18: 2384.654 | BL18: 38.08734237 | BM18: 9097.005566 | BN18: 10.57981732
A19: 13 | B19: 38.09 | C19: 487.183 | D19: 46.369 | E19: 7.018 | F19: 4.473 | G19: 0 | H19: 137.354 | I19: 11.902 | J19: 38.53 | K19: 0 | L19: 8.102 | M19: 5.97 | N19: 16.354 | O19: 154.353 | P19: 85.144 | Q19: 33.612 | R19: 60.782 | S19: 17.464 | T19: 34.537 | U19: 46.18 | V19: 92.261 | W19: 17.293 | X19: 103.693 | Y19: 0 | Z19: 23.588 | AA19: 8.378 | AB19: 20.567 | AC19: 31.585 | AD19: 105.114 | AE19: 59.858 | AF19: 6.198 | AG19: 110.754 | AH19: 27.448 | AI19: 33.091 | AJ19: 59.995 | AK19: 7.06 | AL19: 3.453 | AM19: 4.29 | AN19: 1.064 | AO19: 6.723 | AP19: 5.773 | AQ19: 5.394 | AR19: 84.68 | AS19: 48.469 | AT19: 18.414 | AU19: 24.515 | AV19: 4.223 | AW19: 48.837 | AX19: 1.702 | AY19: 3.185 | AZ19: 1.186 | BA19: 9.058 | BB19: 6.036 | BC19: 80.355 | BD19: 5.439 | BE19: 1.147 | BF19: 48.493 | BG19: 39.655 | BH19: 6.113 | BI19: 2360.414 | BL19: 38.08702138 | BM19: 9096.9289 | BN19: 10.57972816
A20: 14 | B20: 38.09 | C20: 524.855 | D20: 52.004 | E20: 7.949 | F20: 5.045 | G20: 0 | H20: 154.73 | I20: 13.097 | J20: 43.523 | K20: 0 | L20: 8.964 | M20: 6.668 | N20: 18.5 | O20: 174.309 | P20: 119.962 | Q20: 36.533 | R20: 68.811 | S20: 19.437 | T20: 39.352 | U20: 48 | V20: 102.182 | W20: 20.189 | X20: 117.233 | Y20: 0 | Z20: 27.094 | AA20: 9.758 | AB20: 23.379 | AC20: 35.157 | AD20: 111.301 | AE20: 70.675 | AF20: 6.92 | AG20: 122.465 | AH20: 31.546 | AI20: 38.342 | AJ20: 74.605 | AK20: 7.855 | AL20: 3.675 | AM20: 4.697 | AN20: 1.27 | AO20: 8.299 | AP20: 6.48 | AQ20: 5.973 | AR20: 82.058 | AS20: 55.37 | AT20: 21.229 | AU20: 28.387 | AV20: 4.694 | AW20: 49.985 | AX20: 1.974 | AY20: 3.036 | AZ20: 1.29 | BA20: 9.411 | BB20: 6.179 | BC20: 84.282 | BD20: 5.523 | BE20: 1.106 | BF20: 53.298 | BG20: 43.065 | BH20: 7.251 | BI20: 2628.972 | BL20: 38.08712831 | BM20: 9096.95444 | BN20: 10.57975786
A21: 15 | B21: 38.09 | C21: 854.402 | D21: 75.91 | E21: 11.401 | F21: 7.332 | G21: 0 | H21: 175.869 | I21: 18.981 | J21: 62.421 | K21: 47.951 | L21: 13.11 | M21: 9.772 | N21: 27.723 | O21: 208.885 | P21: 183.158 | Q21: 49.982 | R21: 142.019 | S21: 27.702 | T21: 57.921 | U21: 77.414 | V21: 145.165 | W21: 33.349 | X21: 180.826 | Y21: 0 | Z21: 41.759 | AA21: 13.679 | AB21: 34.541 | AC21: 53.677 | AD21: 165.604 | AE21: 81.06 | AF21: 10.206 | AG21: 174.425 | AH21: 48.968 | AI21: 61.393 | AJ21: 161.182 | AK21: 15.485 | AL21: 6.047 | AM21: 7.026 | AN21: 2.073 | AO21: 10.129 | AP21: 9.378 | AQ21: 8.855 | AR21: 128.662 | AS21: 83.489 | AT21: 31.19 | AU21: 41.682 | AV21: 6.844 | AW21: 56.471 | AX21: 1.702 | AY21: 2.777 | AZ21: 1.07 | BA21: 14.456 | BB21: 9.884 | BC21: 120.991 | BD21: 8.157 | BE21: 1.536 | BF21: 74.94 | BG21: 65.156 | BH21: 10.661 | BI21: 3976.448 | BL21: 38.08721644 | BM21: 9096.975488 | BN21: 10.57978234
A22: 16 | B22: 38.09 | C22: 490.455 | D22: 47.5 | E22: 6.9 | F22: 4.576 | G22: 0 | H22: 147.496 | I22: 12.164 | J22: 39.709 | K22: 0 | L22: 8.329 | M22: 6.1 | N22: 17.038 | O22: 131.647 | P22: 108.61 | Q22: 33.564 | R22: 95.424 | S22: 17.598 | T22: 35.961 | U22: 47.717 | V22: 93.517 | W22: 18.319 | X22: 111.627 | Y22: 0 | Z22: 24.989 | AA22: 8.376 | AB22: 22.014 | AC22: 33.811 | AD22: 116.569 | AE22: 64.314 | AF22: 6.761 | AG22: 109.924 | AH22: 29.991 | AI22: 35.857 | AJ22: 65.187 | AK22: 5.849 | AL22: 3.771 | AM22: 4.455 | AN22: 1.189 | AO22: 7.255 | AP22: 6.626 | AQ22: 5.996 | AR22: 87.928 | AS22: 54.264 | AT22: 20.036 | AU22: 26.704 | AV22: 4.473 | AW22: 49.243 | AX22: 1.556 | AY22: 3.535 | AZ22: 1.336 | BA22: 9.584 | BB22: 6.359 | BC22: 74.958 | BD22: 5.572 | BE22: 1.188 | BF22: 53.445 | BG22: 41.895 | BH22: 6.944 | BI22: 2476.205 | BL22: 38.08706255 | BM22: 9096.938734 | BN22: 10.5797396
A23: 17 | B23: 38.09 | C23: 465.129 | D23: 45.799 | E23: 6.644 | F23: 4.384 | G23: 0 | H23: 142.015 | I23: 11.746 | J23: 38.326 | K23: 0 | L23: 7.958 | M23: 5.717 | N23: 16.997 | O23: 128.448 | P23: 93.994 | Q23: 32.522 | R23: 93.267 | S23: 17.264 | T23: 35.011 | U23: 47.86 | V23: 87.267 | W23: 18.089 | X23: 108.087 | Y23: 0 | Z23: 24.071 | AA23: 8.18 | AB23: 21.92 | AC23: 31.541 | AD23: 109.643 | AE23: 61.223 | AF23: 6.518 | AG23: 111.044 | AH23: 28.839 | AI23: 33.904 | AJ23: 57.613 | AK23: 6.04 | AL23: 3.554 | AM23: 4.326 | AN23: 1.139 | AO23: 7.287 | AP23: 6.125 | AQ23: 5.481 | AR23: 88.864 | AS23: 50.898 | AT23: 19.349 | AU23: 25.503 | AV23: 4.442 | AW23: 47.787 | AX23: 1.957 | AY23: 3.472 | AZ23: 1.469 | BA23: 9.359 | BB23: 6.133 | BC23: 71.547 | BD23: 5.318 | BE23: 1.106 | BF23: 52.439 | BG23: 40.205 | BH23: 6.37 | BI23: 2371.19 | BL23: 38.08740713 | BM23: 9097.021036 | BN23: 10.57983531
A24: 18 | B24: 38.09 | C24: 487.472 | D24: 54.334 | E24: 7.943 | F24: 5.24 | G24: 0 | H24: 158.392 | I24: 13.365 | J24: 44.309 | K24: 0 | L24: 9.346 | M24: 6.859 | N24: 19.817 | O24: 145.282 | P24: 132.558 | Q24: 37.108 | R24: 104.179 | S24: 19.999 | T24: 41.16 | U24: 54.79 | V24: 100.296 | W24: 20.978 | X24: 117.824 | Y24: 0 | Z24: 28.879 | AA24: 9.814 | AB24: 24.244 | AC24: 36.555 | AD24: 114.827 | AE24: 68.957 | AF24: 7.255 | AG24: 122.25 | AH24: 33.658 | AI24: 38.28 | AJ24: 65.983 | AK24: 5.825 | AL24: 4.097 | AM24: 5.019 | AN24: 1.309 | AO24: 8.815 | AP24: 6.503 | AQ24: 6.242 | AR24: 100.155 | AS24: 57.71 | AT24: 23.359 | AU24: 29.899 | AV24: 4.857 | AW24: 47.692 | AX24: 1.432 | AY24: 2.728 | AZ24: 1.241 | BA24: 10.011 | BB24: 6.665 | BC24: 72.811 | BD24: 5.746 | BE24: 1.237 | BF24: 57.884 | BG24: 45.451 | BH24: 7.197 | BI24: 2645.838
A25: 19 | B25: 38.09 | C25: 500.361 | D25: 54.545 | E25: 8.12 | F25: 5.323 | G25: 0 | H25: 159.9 | I25: 13.558 | J25: 44.791 | K25: 0 | L25: 9.411 | M25: 6.939 | N25: 19.259 | O25: 147.111 | P25: 137.334 | Q25: 37.313 | R25: 102.7 | S25: 19.928 | T25: 41.605 | U25: 53.376 | V25: 105.93 | W25: 21.073 | X25: 120.293 | Y25: 0 | Z25: 28.27 | AA25: 9.923 | AB25: 23.343 | AC25: 37.032 | AD25: 117.104 | AE25: 68.972 | AF25: 7.268 | AG25: 126.596 | AH25: 33.406 | AI25: 38.772 | AJ25: 65.021 | AK25: 5.89 | AL25: 4.082 | AM25: 4.921 | AN25: 1.252 | AO25: 8.857 | AP25: 6.402 | AQ25: 6.139 | AR25: 101.124 | AS25: 57.042 | AT25: 22.675 | AU25: 29.117 | AV25: 4.972 | AW25: 48.112 | AX25: 1.063 | AY25: 2.117 | AZ25: 1.11 | BA25: 10.585 | BB25: 6.983 | BC25: 73.498 | BD25: 6.276 | BE25: 1.181 | BF25: 58.165 | BG25: 46.19 | BH25: 7.186 | BI25: 2679.516 | BL25: 38.08709148 | BM25: 9096.945642 | BN25: 10.57974763
A26: 20 | B26: 38.13 | C26: 473.869 | D26: 47.773 | E26: 6.913 | F26: 4.513 | G26: 0 | H26: 141.469 | I26: 12.267 | J26: 40.156 | K26: 0 | L26: 8.408 | M26: 6.142 | N26: 17.158 | O26: 128.412 | P26: 109.426 | Q26: 32.991 | R26: 93.718 | S26: 17.933 | T26: 35.914 | U26: 46.806 | V26: 93.587 | W26: 18.418 | X26: 110.683 | Y26: 0 | Z26: 24.637 | AA26: 8.242 | AB26: 22.052 | AC26: 33.451 | AD26: 109.352 | AE26: 62.935 | AF26: 6.697 | AG26: 110.029 | AH26: 29.267 | AI26: 34.951 | AJ26: 55.048 | AK26: 6.393 | AL26: 3.553 | AM26: 4.515 | AN26: 1.091 | AO26: 7.285 | AP26: 5.881 | AQ26: 5.393 | AR26: 89.937 | AS26: 52.413 | AT26: 19.948 | AU26: 25.85 | AV26: 4.5 | AW26: 47.223 | AX26: 1.346 | AY26: 3.382 | AZ26: 1.32 | BA26: 9.354 | BB26: 6.123 | BC26: 69.47 | BD26: 5.746 | BE26: 1.025 | BF26: 50.93 | BG26: 42.526 | BH26: 6.537 | BI26: 2414.958 | BL26: 38.08643765 | BM26: 9096.789478 | BN26: 10.57956601
A27: 21 | B27: 38.13 | C27: 439.671 | D27: 44.384 | E27: 6.547 | F27: 4.238 | G27: 0 | H27: 128.519 | I27: 11.334 | J27: 36.934 | K27: 0 | L27: 7.746 | M27: 5.461 | N27: 15.644 | O27: 116.446 | P27: 87.38 | Q27: 28.865 | R27: 87.286 | S27: 16.771 | T27: 33.663 | U27: 44.228 | V27: 87.869 | W27: 16.733 | X27: 100.628 | Y27: 0 | Z27: 22.282 | AA27: 7.462 | AB27: 20.796 | AC27: 31.888 | AD27: 86.053 | AE27: 57.325 | AF27: 6.183 | AG27: 106.173 | AH27: 26.284 | AI27: 30.956 | AJ27: 47.932 | AK27: 6.112 | AL27: 3.321 | AM27: 4.441 | AN27: 1.082 | AO27: 7.681 | AP27: 5.742 | AQ27: 5.539 | AR27: 82.872 | AS27: 49.529 | AT27: 18.164 | AU27: 24.133 | AV27: 4.217 | AW27: 46.404 | AX27: 1.729 | AY27: 3.634 | AZ27: 1.351 | BA27: 9.212 | BB27: 6.135 | BC27: 67.577 | BD27: 5.259 | BE27: 1.164 | BF27: 47.593 | BG27: 39.506 | BH27: 6.395 | BI27: 2212.473 | BL27: 38.08838113 | BM27: 9097.253671 | BN27: 10.58010587
A28: 22 | B28: 38.13 | C28: 369.396 | D28: 34.844 | E28: 5.16 | F28: 3.206 | G28: 0 | H28: 103.232 | I28: 9.171 | J28: 28.522 | K28: 0 | L28: 6.191 | M28: 4.473 | N28: 12.258 | O28: 90.977 | P28: 62.433 | Q28: 25.306 | R28: 71.253 | S28: 13.783 | T28: 24.835 | U28: 35.103 | V28: 69.839 | W28: 12.598 | X28: 83.504 | Y28: 0 | Z28: 17.505 | AA28: 5.805 | AB28: 16.227 | AC28: 23.702 | AD28: 68.755 | AE28: 49.031 | AF28: 4.727 | AG28: 80.149 | AH28: 20.887 | AI28: 23.541 | AJ28: 30.589 | AK28: 6.075 | AL28: 2.392 | AM28: 3.395 | AN28: 0.35 | AO28: 6.256 | AP28: 4.388 | AQ28: 4.067 | AR28: 69.558 | AS28: 36.192 | AT28: 14.085 | AU28: 18.458 | AV28: 3.244 | AW28: 44.115 | AX28: 1.622 | AY28: 3.002 | AZ28: 1.272 | BA28: 7.16 | BB28: 4.676 | BC28: 55.495 | BD28: 4.182 | BE28: 0.802 | BF28: 41.6 | BG28: 32.252 | BH28: 5.468 | BI28: 1777.108 | BL28: 38.08772393 | BM28: 9097.096701 | BN28: 10.57992331
A29: 23 | B29: 38.13 | C29: 398.775 | D29: 40.005 | E29: 5.781 | F29: 3.506 | G29: 0 | H29: 126.625 | I29: 10.466 | J29: 33.387 | K29: 0 | L29: 7.053 | M29: 5.102 | N29: 14.049 | O29: 104.301 | P29: 112.882 | Q29: 28.883 | R29: 80.44 | S29: 15.297 | T29: 28.846 | U29: 40.87 | V29: 80.071 | W29: 15.017 | X29: 93.983 | Y29: 0 | Z29: 20.321 | AA29: 7.307 | AB29: 18.49 | AC29: 25.137 | AD29: 98.972 | AE29: 54.06 | AF29: 5.489 | AG29: 90.282 | AH29: 24.424 | AI29: 27.972 | AJ29: 70.442 | AK29: 6.052 | AL29: 2.761 | AM29: 3.586 | AN29: 0.723 | AO29: 6.336 | AP29: 4.485 | AQ29: 4.154 | AR29: 77.342 | AS29: 44.474 | AT29: 16.25 | AU29: 21.658 | AV29: 3.582 | AW29: 45.058 | AX29: 0.859 | AY29: 3.775 | AZ29: 1.238 | BA29: 7.48 | BB29: 4.945 | BC29: 61.874 | BD29: 4.43 | BE29: 0.904 | BF29: 45.248 | BG29: 35.11 | BH29: 5.434 | BI29: 2095.993 | BL29: 38.09083357 | BM29: 9097.839426 | BN29: 10.5807871
A30: 24 | B30: 38.13 | C30: 393.034 | D30: 39.228 | E30: 5.709 | F30: 3.5 | G30: 0 | H30: 124.525 | I30: 10.189 | J30: 34.297 | K30: 0 | L30: 7.182 | M30: 5.232 | N30: 15.332 | O30: 109.225 | P30: 112.79 | Q30: 28.16 | R30: 84.799 | S30: 15.271 | T30: 31.571 | U30: 42.148 | V30: 76.975 | W30: 15.499 | X30: 97.019 | Y30: 0 | Z30: 22.095 | AA30: 7.587 | AB30: 19.455 | AC30: 27.888 | AD30: 123.703 | AE30: 58.604 | AF30: 5.991 | AG30: 85.088 | AH30: 25.981 | AI30: 29.986 | AJ30: 87.694 | AK30: 6.056 | AL30: 3.233 | AM30: 3.906 | AN30: 0.97 | AO30: 7.173 | AP30: 5.087 | AQ30: 4.804 | AR30: 82.982 | AS30: 46.928 | AT30: 17.596 | AU30: 23.479 | AV30: 3.853 | AW30: 46.412 | AX30: 1.768 | AY30: 4.049 | AZ30: 1.293 | BA30: 8.357 | BB30: 5.547 | BC30: 61.896 | BD30: 4.629 | BE30: 1.197 | BF30: 47.045 | BG30: 37.646 | BH30: 6.208 | BI30: 2177.871 | BL30: 38.0911587 | BM30: 9097.917082 | BN30: 10.58087742
A31: 25 | B31: 38.13 | C31: 406.598 | D31: 40.11 | E31: 5.949 | F31: 3.724 | G31: 0 | H31: 122.706 | I31: 10.391 | J31: 34.93 | K31: 0 | L31: 7.267 | M31: 5.261 | N31: 15.896 | O31: 112.254 | P31: 125.22 | Q31: 28.619 | R31: 85.096 | S31: 15.635 | T31: 32.532 | U31: 43.008 | V31: 80.346 | W31: 15.8 | X31: 96.854 | Y31: 0 | Z31: 22.901 | AA31: 7.611 | AB31: 20.133 | AC31: 28.94 | AD31: 117.611 | AE31: 57.718 | AF31: 6.258 | AG31: 91.163 | AH31: 27.01 | AI31: 30.55 | AJ31: 91.66 | AK31: 6.007 | AL31: 3.398 | AM31: 4.142 | AN31: 0.963 | AO31: 6.532 | AP31: 5.463 | AQ31: 5.269 | AR31: 84.788 | AS31: 45.965 | AT31: 18.521 | AU31: 24.574 | AV31: 4.016 | AW31: 44.732 | AX31: 1.294 | AY31: 2.492 | AZ31: 1.062 | BA31: 8.713 | BB31: 5.757 | BC31: 55.021 | BD31: 4.823 | BE31: 0.864 | BF31: 45.742 | BG31: 37.273 | BH31: 6.046 | BI31: 2213.208 | BL31: 38.08866211 | BM31: 9097.320781 | BN31: 10.58018392
A32: 26 | B32: 38.13 | C32: 457.393 | D32: 46.708 | E32: 6.789 | F32: 4.297 | G32: 0 | H32: 137.573 | I32: 11.477 | J32: 39.693 | K32: 0 | L32: 7.969 | M32: 6.144 | N32: 17.022 | O32: 126.651 | P32: 150.012 | Q32: 32.268 | R32: 92.451 | S32: 17.651 | T32: 36.314 | U32: 47 | V32: 91.461 | W32: 18.147 | X32: 108.492 | Y32: 0 | Z32: 25.534 | AA32: 8.643 | AB32: 22.293 | AC32: 34.389 | AD32: 139.798 | AE32: 65.644 | AF32: 7.027 | AG32: 106.376 | AH32: 29.975 | AI32: 35.207 | AJ32: 107.617 | AK32: 6.208 | AL32: 3.743 | AM32: 4.862 | AN32: 1.159 | AO32: 7.018 | AP32: 6.243 | AQ32: 5.723 | AR32: 94.37 | AS32: 53.699 | AT32: 20.467 | AU32: 28.125 | AV32: 4.538 | AW32: 48.069 | AX32: 0.991 | AY32: 1.971 | AZ32: 1.008 | BA32: 9.839 | BB32: 6.533 | BC32: 60.392 | BD32: 5.617 | BE32: 1.076 | BF32: 54.769 | BG32: 41.869 | BH32: 6.666 | BI32: 2512.97 | BL32: 38.08701271 | BM32: 9096.926829 | BN32: 10.57972575
A33: 27 | B33: 38.11 | C33: 442.325 | D33: 43.657 | E33: 6.397 | F33: 4.119 | G33: 0 | H33: 138.743 | I33: 11.101 | J33: 37.178 | K33: 0 | L33: 7.665 | M33: 5.772 | N33: 15.483 | O33: 121.615 | P33: 128.22 | Q33: 31.643 | R33: 87.899 | S33: 16.828 | T33: 34.549 | U33: 45.003 | V33: 88.398 | W33: 16.723 | X33: 101.464 | Y33: 0 | Z33: 22.904 | AA33: 8.014 | AB33: 20.888 | AC33: 30.888 | AD33: 106.704 | AE33: 59.893 | AF33: 6.446 | AG33: 104.832 | AH33: 27.215 | AI33: 30.743 | AJ33: 96.164 | AK33: 5.976 | AL33: 3.403 | AM33: 4.192 | AN33: 0.969 | AO33: 6.728 | AP33: 5.554 | AQ33: 5.317 | AR33: 85.213 | AS33: 49.89 | AT33: 18.453 | AU33: 25.135 | AV33: 4.066 | AW33: 47.289 | AX33: 1.804 | AY33: 3.607 | AZ33: 1.43 | BA33: 8.796 | BB33: 5.806 | BC33: 67.472 | BD33: 5.056 | BE33: 0.967 | BF33: 49.195 | BG33: 39.396 | BH33: 6.055 | BI33: 2351.242 | BL33: 38.08725626 | BM33: 9096.985001 | BN33: 10.57979341
A34: 28 | B34: 38.11 | C34: 389.998 | D34: 35.564 | E34: 4.922 | F34: 3.154 | G34: 0 | H34: 112.622 | I34: 9 | J34: 29.402 | K34: 0 | L34: 6.238 | M34: 4.567 | N34: 12.817 | O34: 97.886 | P34: 92.741 | Q34: 25.784 | R34: 74.874 | S34: 14.021 | T34: 26.869 | U34: 37.226 | V34: 71.815 | W34: 12.98 | X34: 86.891 | Y34: 0 | Z34: 18.565 | AA34: 6.435 | AB34: 17.141 | AC34: 25.779 | AD34: 99.43 | AE34: 50.317 | AF34: 5.333 | AG34: 82.391 | AH34: 22.007 | AI34: 25.638 | AJ34: 68.482 | AK34: 5.925 | AL34: 2.893 | AM34: 3.667 | AN34: 0.6 | AO34: 6.422 | AP34: 4.733 | AQ34: 4.547 | AR34: 73.149 | AS34: 42.651 | AT34: 15.28 | AU34: 20.672 | AV34: 3.472 | AW34: 45.57 | AX34: 1.983 | AY34: 2.7 | AZ34: 1.353 | BA34: 7.522 | BB34: 5.08 | BC34: 65.754 | BD34: 4.166 | BE34: 0.96 | BF34: 41.506 | BG34: 33.629 | BH34: 5.306 | BI34: 1970.429 | BL34: 38.08702096 | BM34: 9096.9288 | BN34: 10.57972805
A35: 29 | B35: 38.11 | C35: 373.176 | D35: 30.773 | E35: 4.366 | F35: 2.714 | G35: 0 | H35: 97.275 | I35: 7.936 | J35: 26.126 | K35: 0 | L35: 5.576 | M35: 3.813 | N35: 11.311 | O35: 86.444 | P35: 81.713 | Q35: 22.545 | R35: 65.415 | S35: 12.61 | T35: 22.982 | U35: 32.499 | V35: 62.176 | W35: 11.438 | X35: 79.191 | Y35: 0 | Z35: 16.513 | AA35: 5.477 | AB35: 16.163 | AC35: 23.723 | AD35: 87.963 | AE35: 45.118 | AF35: 4.908 | AG35: 68.767 | AH35: 19.875 | AI35: 22.973 | AJ35: 57.204 | AK35: 5.641 | AL35: 2.769 | AM35: 3.548 | AN35: 0.796 | AO35: 6.309 | AP35: 4.484 | AQ35: 4.125 | AR35: 66.558 | AS35: 42.651 | AT35: 13.44 | AU35: 18.877 | AV35: 3.124 | AW35: 46.237 | AX35: 1.728 | AY35: 3.43 | AZ35: 1.169 | BA35: 7.286 | BB35: 4.823 | BC35: 58.936 | BD35: 4.078 | BE35: 0.878 | BF35: 38.762 | BG35: 29.239 | BH35: 4.523 | BI35: 1782.174 | BL35: 38.09022274 | BM35: 9097.693532 | BN35: 10.58061743
A36: 30 | B36: 38.11 | C36: 393.421 | D36: 34.458 | E36: 4.911 | F36: 3.02 | G36: 0 | H36: 114.54 | I36: 8.839 | J36: 29.292 | K36: 0 | L36: 6.061 | M36: 4.366 | N36: 12.856 | O36: 99.356 | P36: 112.991 | Q36: 24.54 | R36: 76.877 | S36: 13.791 | T36: 26.918 | U36: 36.491 | V36: 72.546 | W36: 14.076 | X36: 89.937 | Y36: 0 | Z36: 19.11 | AA36: 6.797 | AB36: 18.658 | AC36: 25.83 | AD36: 168.18 | AE36: 51.325 | AF36: 5.408 | AG36: 78.776 | AH36: 22.531 | AI36: 27.885 | AJ36: 70.295 | AK36: 4.974 | AL36: 3.032 | AM36: 3.834 | AN36: 0.785 | AO36: 6.655 | AP36: 4.721 | AQ36: 4.638 | AR36: 74.986 | AS36: 42.407 | AT36: 15.107 | AU36: 21.006 | AV36: 3.343 | AW36: 46.811 | AX36: 1.971 | AY36: 3.569 | AZ36: 1.243 | BA36: 7.713 | BB36: 5.072 | BC36: 64.201 | BD36: 4.409 | BE36: 0.92 | BF36: 42.449 | BG36: 32.171 | BH36: 5.064 | BI36: 2075.163 | BL36: 38.08716215 | BM36: 9096.962522 | BN36: 10.57976726
A37: 31 | B37: 38.11 | C37: 322.519 | D37: 38.246 | E37: 5.474 | F37: 3.585 | G37: 0 | H37: 111.144 | I37: 10.189 | J37: 33.162 | K37: 0 | L37: 7.037 | M37: 5.058 | N37: 15.111 | O37: 107.938 | P37: 108.384 | Q37: 25.924 | R37: 78.946 | S37: 15.356 | T37: 31.695 | U37: 43.919 | V37: 74.47 | W37: 15.19 | X37: 83.537 | Y37: 0 | Z37: 21.044 | AA37: 6.642 | AB37: 19.974 | AC37: 29.596 | AD37: 115.168 | AE37: 55.421 | AF37: 6.102 | AG37: 87.636 | AH37: 27.669 | AI37: 28.203 | AJ37: 73.358 | AK37: 0.374 | AL37: 3.455 | AM37: 4.172 | AN37: 1.05 | AO37: 7.378 | AP37: 5.622 | AQ37: 5.269 | AR37: 81.235 | AS37: 46.228 | AT37: 17.608 | AU37: 24.318 | AV37: 3.767 | AW37: 47.673 | AX37: 1.902 | AY37: 3.873 | AZ37: 1.36 | BA37: 8.775 | BB37: 5.789 | BC37: 57.576 | BD37: 4.536 | BE37: 1.038 | BF37: 46.907 | BG37: 35.377 | BH37: 5.664 | BI37: =SUM(C37:BH37) -> 2028.643 | BL37: 38.08838707 | BM37: 9097.25509 | BN37: 10.58010752
A38: Загальний обсяг газу, м3 | C38: =SUM(C7:C37) -> 17522.64 | D38: =SUM(D7:D37) -> 1423.014 | E38: 218.238 | F38: 134.282 | G38: 0 | H38: 4200.757 | I38: 364.05 | J38: 1187.788 | K38: 47.951 | L38: 249.85 | M38: 181.495 | N38: 515.918 | O38: 4270.155 | P38: 3196.784 | Q38: 997.739 | R38: 2365.409 | S38: 541.083 | T38: 1085.762 | U38: 1450.416 | V38: 2794.838 | W38: 547.911 | X38: 3291.454 | Y38: 0 | Z38: 746.049 | AA38: 259.396 | AB38: 657.04 | AC38: 989.948 | AD38: 3302.775 | AE38: 1768.489 | AF38: 196.944 | AG38: 3280.481 | AH38: 884.87 | AI38: 1037.98 | AJ38: 2118.249 | AK38: 196.166 | AL38: =SUM(AL7:AL37) -> 107.866 | AM38: 135.234 | AN38: 33.085 | AO38: 227.916 | AP38: 181.793 | AQ38: 167.463 | AR38: 2686.756 | AS38: 1566.318 | AT38: 598.912 | AU38: 785.094 | AV38: 132.405 | AW38: 1488.425 | AX38: 48.079 | AY38: 92.368 | AZ38: 37.222 | BA38: 283.943 | BB38: 188.871 | BC38: 2293.379 | BD38: 163.81 | BE38: 33.248 | BF38: 1568.612 | BG38: 1256.361 | BH38: 201.77 | BI38: 76304.851 | BL38: 38.08828253 | BM38: 9097.230121 | BN38: 10.58007848
A39: Енергія, МДж | C39: =SUMPRODUCT($B$7:$B$37,C7:C37) -> 667244.5166 | D39: 54198.35483 | E39: 8311.43769 | F39: 5114.34531 | G39: 0 | H39: 159997.0583 | I39: 13865.60557 | J39: 45239.45618 | K39: 1826.45359 | L39: 9516.06475 | M39: 6912.61376 | N39: 19649.79477 | O39: 162627.5954 | P39: 121769.8461 | Q39: 38001.27518 | R39: 90104.09008 | S39: 20608.41347 | T39: 41353.44051 | U39: 55242.1803 | V39: 106447.5998 | W39: 20868.32053 | X39: 125362.9486 | Y39: 0 | Z39: 28414.83651 | AA39: 9879.46958 | AB39: 25025.58994 | AC39: 37704.86613 | AD39: 125805.4529 | AE39: 67363.79516 | AF39: 7501.33347 | AG39: 124943.7215 | AH39: 33702.27045 | AI39: 39533.56602 | AJ39: 80684.57623 | AK39: 7471.40625 | AL39: =SUMPRODUCT($B$7:$B$37,AL7:AL37) -> 4108.44196 | AM39: 5150.8308 | AN39: 1260.09338 | AO39: 8680.8337 | AP39: 6924.14734 | AQ39: 6378.42253 | AR39: 102335.034 | AS39: 59657.61175 | AT39: 22810.90329 | AU39: 29902.59582 | AV39: 5043.00977 | AW39: 56692.89552 | AX39: 1831.37009 | AY39: 3518.49294 | AZ39: 1417.83845 | BA39: 10814.90543 | BB39: 7193.73669 | BC39: 87347.44312 | BD39: 6239.22212 | BE39: 1266.35988 | BF39: 59746.07156 | BG39: 47851.86431 | BH39: 7684.94152 | BI39: =SUMPRODUCT(B7:B37,BI7:BI37) -> 2906149.361 | BL39: 38.08654617 | BM39: 9096.815398 | BN39: 10.57959616
A40: Теплота згоряння (середньозважене значення за місяць), МДж/м³ | C40: =C39/C38 -> 38.07899475 | D40: =D39/D38 -> 38.08701448 | E40: =E39/E38 -> 38.08428271 | F40: =F39/F38 -> 38.08660364 | H40: 38.08767283 | I40: 38.08709125 | J40: 38.08714702 | K40: 38.09 | L40: 38.08711127 | M40: 38.08707546 | N40: 38.08705021 | O40: 38.08470545 | P40: 38.09135872 | Q40: 38.08739077 | R40: 38.09239336 | S40: 38.08734237 | T40: 38.08702138 | U40: 38.08712831 | V40: 38.08721644 | W40: 38.08706255 | X40: 38.08740713 | Z40: 38.08709148 | AA40: 38.08643765 | AB40: 38.08838113 | AC40: 38.08772393 | AD40: 38.09083357 | AE40: 38.0911587 | AF40: 38.08866211 | AG40: 38.08701271 | AH40: 38.08725626 | AI40: 38.08702096 | AJ40: 38.09022274 | AK40: 38.08716215 | AL40: 38.08838707 | AM40: 38.08828253 | AN40: 38.08654617 | AO40: 38.08786439 | AP40: 38.08808557 | AQ40: 38.0885481 | AR40: 38.08869654 | AS40: 38.08780321 | AT40: 38.08723701 | AU40: 38.08791791 | AV40: 38.0877593 | AW40: 38.08918523 | AX40: 38.09085235 | AY40: 38.09212 | AZ40: 38.09140965 | BA40: 38.0882974 | BB40: 38.08809553 | BC40: 38.08678946 | BD40: 38.08816385 | BE40: 38.08830245 | BF40: 38.08849579 | BG40: 38.08767091 | BH40: 38.08763206 | BI40: =BI39/BI38 -> 38.08603678 | BL40: 38.08786439 | BM40: 9097.130249 | BN40: 10.57996233
A41: Теплота згоряння (середньозважене значення за місяць), ккал/м³ | C41: =C40*238.8459 -> 9095.011773 | D41: =D40*238.8459 -> 9096.927253 | E41: 9096.27478 | F41: 9096.829124 | H41: 9097.084496 | I41: 9096.945588 | J41: 9096.958908 | K41: 9097.640331 | L41: 9096.950369 | M41: 9096.941816 | N41: 9096.935786 | O41: 9096.375751 | P41: 9097.964855 | Q41: 9097.017127 | R41: 9098.211975 | S41: 9097.005566 | T41: 9096.9289 | U41: 9096.95444 | V41: 9096.975488 | W41: 9096.938734 | X41: 9097.021036 | Z41: 9096.945642 | AA41: 9096.789478 | AB41: 9097.253671 | AC41: 9097.096701 | AD41: 9097.839426 | AE41: 9097.917082 | AF41: 9097.320781 | AG41: 9096.926829 | AH41: 9096.985001 | AI41: 9096.9288 | AJ41: 9097.693532 | AK41: 9096.962522 | AL41: 9097.25509 | AM41: 9097.230121 | AN41: 9096.815398 | AO41: 9097.130249 | AP41: 9097.183077 | AQ41: 9097.29355 | AR41: 9097.329006 | AS41: 9097.115637 | AT41: 9096.980401 | AU41: 9097.143031 | AV41: 9097.105149 | AW41: 9097.445726 | AX41: 9097.843911 | AY41: 9098.146684 | AZ41: 9097.97702 | BA41: 9097.233673 | BB41: 9097.185455 | BC41: 9096.873506 | BD41: 9097.201774 | BE41: 9097.234879 | BF41: 9097.281057 | BG41: 9097.084037 | BH41: 9097.074757 | BI41: 9096.693731 | BL41: 38.08808557 | BM41: 9097.183077 | BN41: 10.58002377
A42: Теплота згоряння (середньозважене значення за місяць), кВт*год./м³ | C42: =C40/3.6 -> 10.57749854 | D42: =D40/3.6 -> 10.57972625 | E42: 10.57896742 | F42: 10.57961212 | H42: 10.57990912 | I42: 10.57974757 | J42: 10.57976306 | K42: 10.58055556 | L42: 10.57975313 | M42: 10.57974318 | N42: 10.57973617 | O42: 10.57908485 | P42: 10.58093298 | Q42: 10.57983077 | R42: 10.58122038 | S42: 10.57981732 | T42: 10.57972816 | U42: 10.57975786 | V42: 10.57978234 | W42: 10.5797396 | X42: 10.57983531 | Z42: 10.57974763 | AA42: 10.57956601 | AB42: 10.58010587 | AC42: 10.57992331 | AD42: 10.5807871 | AE42: 10.58087742 | AF42: 10.58018392 | AG42: 10.57972575 | AH42: 10.57979341 | AI42: 10.57972805 | AJ42: 10.58061743 | AK42: 10.57976726 | AL42: 10.58010752 | AM42: 10.58007848 | AN42: 10.57959616 | AO42: 10.57996233 | AP42: 10.58002377 | AQ42: 10.58015225 | AR42: 10.58019348 | AS42: 10.57994534 | AT42: 10.57978806 | AU42: 10.5799772 | AV42: 10.57993314 | AW42: 10.58032923 | AX42: 10.58079232 | AY42: 10.58114444 | AZ42: 10.58094713 | BA42: 10.58008261 | BB42: 10.58002653 | BC42: 10.57966374 | BD42: 10.58004551 | BE42: 10.58008402 | BF42: 10.58013772 | BG42: 10.57990859 | BH42: 10.57989779 | BI42: 10.57945466 | BL42: 38.0885481 | BM42: 9097.29355 | BN42: 10.58015225
BL43: 38.08869654 | BM43: 9097.329006 | BN43: 10.58019348
C44: 38.07899475 | D44: 38.08701448 | E44: 38.08428271 | F44: 38.08660364 | H44: 38.08767283 | I44: 38.08709125 | J44: 38.08714702 | K44: 38.09 | L44: 38.08711127 | M44: 38.08707546 | N44: 38.08705021 | O44: 38.08470545 | P44: 38.09135872 | Q44: 38.08739077 | R44: 38.09239336 | S44: 38.08734237 | T44: 38.08702138 | U44: 38.08712831 | V44: 38.08721644 | W44: 38.08706255 | X44: 38.08740713 | Z44: 38.08709148 | AA44: 38.08643765 | AB44: 38.08838113 | AC44: 38.08772393 | AD44: 38.09083357 | AE44: 38.0911587 | AF44: 38.08866211 | AG44: 38.08701271 | AH44: 38.08725626 | AI44: 38.08702096 | AJ44: 38.09022274 | AK44: 38.08716215 | AL44: 38.08838707 | AM44: 38.08828253 | AN44: 38.08654617 | AO44: 38.08786439 | AP44: 38.08808557 | AQ44: 38.0885481 | AR44: 38.08869654 | AS44: 38.08780321 | AT44: 38.08723701 | AU44: 38.08791791 | AV44: 38.0877593 | AW44: 38.08918523 | AX44: 38.09085235 | AY44: 38.09212 | AZ44: 38.09140965 | BA44: 38.0882974 | BB44: 38.08809553 | BC44: 38.08678946 | BD44: 38.08816385 | BE44: 38.08830245 | BF44: 38.08849579 | BG44: 38.08767091 | BH44: 38.08763206 | BI44: 38.08603678 | BL44: 38.08780321 | BM44: 9097.115637 | BN44: 10.57994534
C45: 9095.011773 | D45: 9096.927253 | E45: 9096.27478 | F45: 9096.829124 | H45: 9097.084496 | I45: 9096.945588 | J45: 9096.958908 | K45: 9097.640331 | L45: 9096.950369 | M45: 9096.941816 | N45: 9096.935786 | O45: 9096.375751 | P45: 9097.964855 | Q45: 9097.017127 | R45: 9098.211975 | S45: 9097.005566 | T45: 9096.9289 | U45: 9096.95444 | V45: 9096.975488 | W45: 9096.938734 | X45: 9097.021036 | Z45: 9096.945642 | AA45: 9096.789478 | AB45: 9097.253671 | AC45: 9097.096701 | AD45: 9097.839426 | AE45: 9097.917082 | AF45: 9097.320781 | AG45: 9096.926829 | AH45: 9096.985001 | AI45: 9096.9288 | AJ45: 9097.693532 | AK45: 9096.962522 | AL45: 9097.25509 | AM45: 9097.230121 | AN45: 9096.815398 | AO45: 9097.130249 | AP45: 9097.183077 | AQ45: 9097.29355 | AR45: 9097.329006 | AS45: 9097.115637 | AT45: 9096.980401 | AU45: 9097.143031 | AV45: 9097.105149 | AW45: 9097.445726 | AX45: 9097.843911 | AY45: 9098.146684 | AZ45: 9097.97702 | BA45: 9097.233673 | BB45: 9097.185455 | BC45: 9096.873506 | BD45: 9097.201774 | BE45: 9097.234879 | BF45: 9097.281057 | BG45: 9097.084037 | BH45: 9097.074757 | BI45: 9096.693731 | BL45: 38.08723701 | BM45: 9096.980401 | BN45: 10.57978806
C46: 10.57749854 | D46: 10.57972625 | E46: 10.57896742 | F46: 10.57961212 | H46: 10.57990912 | I46: 10.57974757 | J46: 10.57976306 | K46: 10.58055556 | L46: 10.57975313 | M46: 10.57974318 | N46: 10.57973617 | O46: 10.57908485 | P46: 10.58093298 | Q46: 10.57983077 | R46: 10.58122038 | S46: 10.57981732 | T46: 10.57972816 | U46: 10.57975786 | V46: 10.57978234 | W46: 10.5797396 | X46: 10.57983531 | Z46: 10.57974763 | AA46: 10.57956601 | AB46: 10.58010587 | AC46: 10.57992331 | AD46: 10.5807871 | AE46: 10.58087742 | AF46: 10.58018392 | AG46: 10.57972575 | AH46: 10.57979341 | AI46: 10.57972805 | AJ46: 10.58061743 | AK46: 10.57976726 | AL46: 10.58010752 | AM46: 10.58007848 | AN46: 10.57959616 | AO46: 10.57996233 | AP46: 10.58002377 | AQ46: 10.58015225 | AR46: 10.58019348 | AS46: 10.57994534 | AT46: 10.57978806 | AU46: 10.5799772 | AV46: 10.57993314 | AW46: 10.58032923 | AX46: 10.58079232 | AY46: 10.58114444 | AZ46: 10.58094713 | BA46: 10.58008261 | BB46: 10.58002653 | BC46: 10.57966374 | BD46: 10.58004551 | BE46: 10.58008402 | BF46: 10.58013772 | BG46: 10.57990859 | BH46: 10.57989779 | BI46: 10.57945466 | BL46: 38.08791791 | BM46: 9097.143031 | BN46: 10.5799772
BL47: 38.0877593 | BM47: 9097.105149 | BN47: 10.57993314
BL48: 38.08918523 | BM48: 9097.445726 | BN48: 10.58032923
BL49: 38.09085235 | BM49: 9097.843911 | BN49: 10.58079232
BL50: 38.09212 | BM50: 9098.146684 | BN50: 10.58114444
BL51: 38.09140965 | BM51: 9097.97702 | BN51: 10.58094713
BL52: 38.0882974 | BM52: 9097.233673 | BN52: 10.58008261
BL53: 38.08809553 | BM53: 9097.185455 | BN53: 10.58002653
BL54: 38.08678946 | BM54: 9096.873506 | BN54: 10.57966374
BL55: 38.08816385 | BM55: 9097.201774 | BN55: 10.58004551
BL56: 38.08830245 | BM56: 9097.234879 | BN56: 10.58008402
BL57: 38.08849579 | BM57: 9097.281057 | BN57: 10.58013772
BL58: 38.08767091 | BM58: 9097.084037 | BN58: 10.57990859
BL59: 38.08763206 | BM59: 9097.074757 | BN59: 10.57989779
BL60: 38.08603678 | BM60: 9096.693731 | BN60: 10.57945466

Sheet додаток
A2: Додаток до Паспорту фізико-хімічних показників природного газу №21
A4: Область | B4: ГРС, прямий споживач | C4: Cередньозважене значення вищої теплоти згоряння
C5: МДж/м³ | D5: ккал/м³ | E5: кВт*год./м³
A6: Київська область | B6: ГРС Б. Церква | C6: 38.07899475 | D6: 9095.011773 | E6: 10.57749854
B7: ГРС В. Половецьке | C7: 38.08701448 | D7: 9096.927253 | E7: 10.57972625
B8: ГРС Піщане | C8: 38.08428271 | D8: 9096.27478 | E8: 10.57896742
B9: ГРС Острійки | C9: 38.08660364 | D9: 9096.829124 | E9: 10.57961212
B10: ГРС Фастів-1 | C10: 38.08660364 | D10: 9096.829124 | E10: 10.57961212
B11: ГРС Фастів-2 | C11: 38.08767283 | D11: 9097.084496 | E11: 10.57990912
B12: ГРС Кожанка | C12: 38.08709125 | D12: 9096.945588 | E12: 10.57974757
B13: ГРС Мотовилівка | C13: 38.08714702 | D13: 9096.958908 | E13: 10.57976306
B14: ГРС р/г Фастівський | C14: 38.09 | D14: 9097.640331 | E14: 10.58055556
B15: ГРС Триліси | C15: 38.08711127 | D15: 9096.950369 | E15: 10.57975313
B16: ГРС В.Снітинка | C16: 38.08707546 | D16: 9096.941816 | E16: 10.57974318
B17: ГРС Дорогінка | C17: 38.08705021 | D17: 9096.935786 | E17: 10.57973617
B18: ГРС Васильків | C18: 38.08470545 | D18: 9096.375751 | E18: 10.57908485
B19: ГРС Ворзель | C19: 38.09135872 | D19: 9097.964855 | E19: 10.58093298
B20: ГРС Гребінки | C20: 38.08739077 | D20: 9097.017127 | E20: 10.57983077
B21: ГРС Глеваха | C21: 38.09239336 | D21: 9098.211975 | E21: 10.58122038
B22: ГРС Устимівка | C22: 38.08734237 | D22: 9097.005566 | E22: 10.57981732
B23: ГРС Багрин (Калинівка) | C23: 38.08702138 | D23: 9096.9289 | E23: 10.57972816
B24: ГРС Плесецьке | C24: 38.08712831 | D24: 9096.95444 | E24: 10.57975786
B25: ГРС Тр.Новоселиця | C25: 38.08721644 | D25: 9096.975488 | E25: 10.57978234
B26: ГРС Вишеньки | C26: 38.08706255 | D26: 9096.938734 | E26: 10.5797396
B27: ГРС Чайка | C27: 38.08740713 | D27: 9097.021036 | E27: 10.57983531
B28: ГРС ЛОС | C28: 38.08740713 | D28: 9097.021036 | E28: 10.57983531
B29: ГРС Жорнівка | C29: 38.08709148 | D29: 9096.945642 | E29: 10.57974763
B30: ГРС Забір'я | C30: 38.08643765 | D30: 9096.789478 | E30: 10.57956601
B31: ГРС Димер (місто) | C31: 38.08838113 | D31: 9097.253671 | E31: 10.58010587
B32: ГРС Іванків | C32: 38.08772393 | D32: 9097.096701 | E32: 10.57992331
B33: ГРС Димер - 2 (Агромарс) | C33: 38.09083357 | D33: 9097.839426 | E33: 10.5807871
B34: ГРС Блиставиця | C34: 38.0911587 | D34: 9097.917082 | E34: 10.58087742
B35: ГРС Катюжанка | C35: 38.08866211 | D35: 9097.320781 | E35: 10.58018392
B36: ГРС Рокитно | C36: 38.08701271 | D36: 9096.926829 | E36: 10.57972575
B37: ГРС Шпитьки | C37: 38.08725626 | D37: 9096.985001 | E37: 10.57979341
B38: ГРС Стоянка | C38: 38.08702096 | D38: 9096.9288 | E38: 10.57972805
B39: ГРС Ірпінь | C39: 38.09022274 | D39: 9097.693532 | E39: 10.58061743
B40: ГРС Чорнобиль | C40: 38.08716215 | D40: 9096.962522 | E40: 10.57976726
B41: ГРС Зелений Мис | C41: 38.08838707 | D41: 9097.25509 | E41: 10.58010752
B42: ГРС Оране | C42: 38.08828253 | D42: 9097.230121 | E42: 10.58007848
B43: ГРС Зорин | C43: 38.08654617 | D43: 9096.815398 | E43: 10.57959616
B44: ГРС Обуховичі | C44: 38.08786439 | D44: 9097.130249 | E44: 10.57996233
B45: ГРС Поліське | C45: 38.08808557 | D45: 9097.183077 | E45: 10.58002377
B46: ГРС Красятичі | C46: 38.0885481 | D46: 9097.29355 | E46: 10.58015225
B47: ГРС Макарів | C47: 38.08869654 | D47: 9097.329006 | E47: 10.58019348
B48: ГРС Бородянка | C48: 38.08780321 | D48: 9097.115637 | E48: 10.57994534
B49: ГРС Грузьке | C49: 38.08723701 | D49: 9096.980401 | E49: 10.57978806
B50: ГРС Клавдієво | C50: 38.08791791 | D50: 9097.143031 | E50: 10.5799772
B51: ГРС Забуяння | C51: 38.0877593 | D51: 9097.105149 | E51: 10.57993314
B52: ГРС Мигалки | C52: 38.08918523 | D52: 9097.445726 | E52: 10.58032923
B53: прямий споживач АГНКС Бородянка "Ітера Україна" | C53: 38.09085235 | D53: 9097.843911 | E53: 10.58079232
B54: прямий споживач АГНКС Б.Церква-2 "Екогаз-2005" | C54: 38.09212 | D54: 9098.146684 | E54: 10.58114444
B55: прямий споживач АГНКС - Фастів | C55: 38.09140965 | D55: 9097.97702 | E55: 10.58094713
A56: Житомирська область | B56: ГРС Народичі | C56: 38.0882974 | D56: 9097.233673 | E56: 10.58008261
B57: ГРС Яжберень | C57: 38.08809553 | D57: 9097.185455 | E57: 10.58002653
B58: ГРС Малин | C58: 38.08678946 | D58: 9096.873506 | E58: 10.57966374
B59: ГРС Федорівка | C59: 38.08816385 | D59: 9097.201774 | E59: 10.58004551
B60: ГРС Недашки | C60: 38.08830245 | D60: 9097.234879 | E60: 10.58008402
B61: ГРС Радомишль | C61: 38.08849579 | D61: 9097.281057 | E61: 10.58013772
B62: ГРС Брусилів | C62: 38.08767091 | D62: 9097.084037 | E62: 10.57990859
B63: ГРС Ковганівка | C63: 38.08763206 | D63: 9097.074757 | E63: 10.57989779
A64: Середньозважене значення вищої теплоти згоряння по маршруту № 21 | C64: 38.08603678 | D64: 9096.693731 | E64: 10.57945466
A67: Головний інженер Боярського ЛВУМГ Табак С.М. 03.04.2017 р.
A68: Підрозділу підприємства, якому підпорядкована лабораторія | D68: прізвище | E68: підпис | F68: дата
A69: Завідувач вимірювальної хіміко-аналітичної лабораторії Клименко І.А. 03.04.2017 р.
A70: Лабораторія, де здійснювалось вимірювання газу | D70: прізвище | E70: підпис | F70: дата
A71: Начальник служби газовимірювань та метрології Прима Ю.І. 03.04.2017 р.
A72: Підрозділу, відповідального за облік газу за маршрутом | D72: прізвище | E72: підпис | F72: дата

Sheet variablesList (hidden)
A1: 3 | B1: x:\gaysin | C1: 10, 11, 24, 25, 127, 128, 132, 180, 207, 215 | D1: x:\
B2: x:\Illinci
B3: x:\Talne
